fUSD/lending_fUSD_20260121
["ID","MTS","AMOUNT","RATE_DAILY","PERIOD"]
[402987886,1769022639522,-285.0,0.00017317,2]
[402987887,1769022639532,-500.0,0.00017317,2]
[402987888,1769022639541,-913.0,0.00017329,2]
[402987889,1769022639550,-767.48,0.00017361,2]
[402987890,1769022639559,-868.0,0.00017363,2]
[402987891,1769022639568,-500.0,0.00017372,2]
[402987892,1769022639577,-190.12,0.00017397,2]
[402987893,1769022639587,-1749.0,0.00017398,2]
[402987894,1769022639596,-500.0,0.00017427,2]
[402987895,1769022639606,-1397.0,0.00017432,2]
[402987896,1769022639616,-440.0,0.00017466,2]
[402987897,1769022639625,-500.0,0.00017482,2]
[402987898,1769022639635,-228.0,0.000175,2]
[402987899,1769022639644,-1842.0,0.00017534,2]
[402987900,1769022639656,-500.0,0.00017536,2]
[402987901,1769022639665,-880.0,0.00017569,2]
[402987902,1769022639675,-500.0,0.00017591,2]
[402987903,1769022639684,-1834.0,0.00017603,2]
[402987904,1769022639693,-767.48,0.00017635,2]
[402987905,1769022639703,-712.0,0.00017637,2]
[402987906,1769022639713,-253.97,0.00017668,2]
[402987907,1769022639723,-792.0,0.00017671,2]
[402987908,1769022639732,-1237.0,0.00017705,2]
[402987909,1769022639741,-500.0,0.00017721,2]
[402987910,1769022639750,-1000.0,0.00017721,2]
[402987911,1769022639759,-1001.85923341,0.00017721,2]
[402987912,1769022639768,-1027.78660944,0.00017721,2]
[402987913,1769022639777,-500.0,0.00017721,2]
[402987914,1769022639787,-406.24694652,0.00017721,2]
[402987915,1769022639796,-372.82575969,0.00017721,2]
[402987916,1769022639805,-874.53885875,0.00017721,2]
[402987917,1769022639814,-324.68792933,0.00017721,2]
[402987918,1769022639823,-1000.0,0.00017721,2]
[402987919,1769022639833,-1000.0,0.00017721,2]
[402987920,1769022639842,-1000.0,0.00017721,2]
[402987921,1769022639852,-1001.39035999,0.00017721,2]
[402987922,1769022639861,-501.61885564,0.00017721,2]
[402987923,1769022639870,-1000.0,0.00017721,2]
[402987924,1769022639880,-1000.0,0.00017721,2]
[402987925,1769022639889,-266.0,0.00017739,2]
[402987926,1769022639899,-1863.0,0.00017774,2]
[402987927,1769022639908,-4400.0,0.000178,6]
[402987928,1769022639918,-1234.0,0.00017808,2]
[402987929,1769022639927,-500.0,0.00017821,2]
[402987930,1769022639936,-1086.66357325,0.00017821,2]
[402987931,1769022639945,-1619.0,0.00017842,2]
[402987932,1769022639955,-1352.0,0.00017876,2]
[402987933,1769022639964,-500.0,0.00017889,2]
[402987934,1769022639973,-715.55666357,0.000179,2]
[402987936,1769022639982,-880.624,0.000179,2]
[402987937,1769022639992,-194.31477364,0.000179,2]
[402987938,1769022640001,-6600.0,0.000179,6]
[402987939,1769022640011,-1411.89147187,0.000179,2]
[402987940,1769022640020,-767.51,0.00017909,2]
[402987941,1769022640030,-715.55666357,0.0001791,2]
[402987942,1769022640039,-1572.0,0.0001791,2]
[402987943,1769022640049,-715.55666357,0.0001792,2]
[402987944,1769022640058,-1000.0,0.0001797,2]
[402987945,1769022640067,-694.631145,0.0001797,2]
[402987946,1769022640077,-1321.57411122,0.0001797,2]
[402987947,1769022640088,-1000.0,0.0001797,2]
[402987948,1769022640097,-500.0,0.0001797,2]
[402987949,1769022640111,-30935.0,0.00017973,2]
[402987950,1769022640122,-1284.29468614,0.0001799,2]
[402987951,1769022640132,-150.0,0.00017999,2]
[402987952,1769022640142,-252.48903335,0.00017999,2]
[402987953,1769022640154,-500.0,0.00017999,2]
[402987954,1769022640164,-500.0,0.00017999,2]
[402987955,1769022640174,-500.0,0.00017999,2]
[402987956,1769022640185,-500.0,0.00017999,2]
[402987957,1769022640194,-500.0,0.00017999,2]
[402987958,1769022640204,-500.0,0.00017999,2]
[402987959,1769022640214,-500.0,0.00017999,2]
[402987960,1769022640224,-500.0,0.00017999,2]
[402987961,1769022640233,-500.0,0.00017999,2]
[402987962,1769022640243,-500.0,0.00017999,2]
[402987963,1769022640252,-500.0,0.00017999,2]
[402987964,1769022640262,-206.5350797,0.00017999,2]
[402987965,1769022640271,-500.83,0.00017999,2]
[402987966,1769022640281,-150.0,0.00017999,2]
[402987967,1769022640290,-963425.81199173,0.00018,2]
[402987968,1769022640299,-14919.2741723,0.00018,2]
[402987969,1769022640308,-15055.0,0.00018,2]
[402987970,1769022640317,-222316.9998014,0.00018,2]
[402987971,1769022640326,-59190.8951709,0.00018,2]
[402987972,1769022640336,-200.0,0.00018,2]
[402987973,1769022640345,-150.00017572,0.00018008,2]
[402987974,1769022640355,-1680.0,0.00018053,2]
[402987975,1769022640365,-250.0,0.00018081,2]
[402987976,1769022640374,-195.0,0.00018083,2]
[402987977,1769022640383,-250.0,0.00018083,2]
[402987978,1769022640392,-375.32425764,0.00018083,2]
[402987979,1769022640402,-1342.21,0.00018099,2]
[402987980,1769022640411,-381.03139506,0.00018158,2]
[402987981,1769022640421,-1500.0,0.00018268,2]
[402987982,1769022640431,-1500.0,0.00018268,2]
[402987983,1769022640440,-681.48019269,0.00018309,2]
[402987984,1769022640449,-582.0,0.00018316,2]
[402987985,1769022640458,-582.0,0.00018357,2]
[402987986,1769022640467,-582.0,0.00018357,2]
[402987987,1769022640476,-582.0,0.00018407,2]
[402987988,1769022640485,-358.32329181,0.00018421,2]
[402987989,1769022640495,-582.0,0.0001843,2]
[402987990,1769022640504,-166.66,0.00018466,2]
[402987991,1769022640513,-186.93,0.00018526,2]
[402987992,1769022640522,-502.92,0.00018539,2]
[402987993,1769022640531,-16649.18,0.00018616,2]
[402987994,1769022640541,-289.57350809,0.00018659,2]
[402987995,1769022640550,-582.0,0.00018761,2]
[402987996,1769022640559,-582.0,0.0001877,2]
[402987997,1769022640569,-151.28,0.000188,2]
[402987998,1769022640578,-151.28,0.000188,2]
[402987999,1769022640587,-1101.69074588,0.00018816,2]
[402988000,1769022640597,-1070.67630539,0.00018816,2]
[402988001,1769022640607,-1342.21,0.00018922,2]
[402988002,1769022640617,-582.0,0.00018944,2]
[402988003,1769022640626,-300.0,0.00019,2]
[402988004,1769022640635,-253.97,0.00019038,2]
[402988005,1769022640645,-166.66,0.00019038,2]
[402988006,1769022640655,-582.0,0.00019041,2]
[402988007,1769022640664,-582.0,0.00019045,2]
[402988008,1769022640674,-171.59,0.00019084,2]
[402988009,1769022640684,-582.0,0.00019094,2]
[402988010,1769022640693,-502.92,0.00019164,2]
[402988011,1769022640702,-3000.0,0.00019178,2]
[402988012,1769022640712,-250.09642599,0.00019178,2]
[402988013,1769022640721,-582.0,0.00019276,2]
[402988014,1769022640730,-7997.38747366,0.00019325,2]
[402988015,1769022640740,-150.00017572,0.00019328,7]
[402988016,1769022640750,-6684.1140788,0.00019335,2]
[402988017,1769022640759,-250.0,0.00019349,2]
[402988018,1769022640769,-582.0,0.00019361,2]
[402988019,1769022640779,-582.0,0.00019405,2]
[402988020,1769022640788,-186.93,0.00019408,2]
[402988021,1769022640797,-582.0,0.00019449,2]
[402988022,1769022640806,-582.0,0.00019504,2]
[402988023,1769022640815,-1000.0,0.00019512,2]
[402988024,1769022640825,-582.0,0.00019585,2]
[402988025,1769022640834,-534.0,0.000196,2]
[402988026,1769022640843,-166.66,0.0001961,2]
[402988027,1769022640852,-582.0,0.00019635,2]
[402988028,1769022640862,-1000.0,0.0001967,2]
[402988029,1769022640871,-500.0,0.0001967,2]
[402988030,1769022640881,-1342.21,0.00019744,2]
[402988031,1769022640890,-500.0,0.00019753,2]
[402988032,1769022640899,-158.37327714,0.00019791,2]
[402988033,1769022640908,-2351.0,0.00019828,2]
[402988034,1769022640917,-582.0,0.00019847,2]
[402988035,1769022640927,-1000.0,0.0001987,2]
[402988036,1769022640935,-500.0,0.0001987,2]
[402988037,1769022640945,-582.0,0.00019872,2]
[402988038,1769022640954,-3587.73445889,0.000199,2]
[402988039,1769022640964,-120061.71999357,0.000199,2]
[402988040,1769022640973,-8800.0,0.000199,7]
[402988041,1769022640982,-582.0,0.00019929,2]
[402988042,1769022640992,-848.04,0.00019944,2]
[402988043,1769022641001,-582.0,0.00019971,2]
[402988044,1769022641011,-582.0,0.00019982,2]
[402988045,1769022641020,-582.0,0.00019996,2]
[402988046,1769022641030,-500.0,0.00019999,2]
[402988047,1769022641039,-500.0,0.00019999,2]
[402988048,1769022641048,-500.0,0.00019999,2]
[402988049,1769022641057,-367.11093722,0.00019999,2]
[402988050,1769022641066,-337.21220376,0.00019999,2]
[402988051,1769022641077,-500.0,0.00019999,2]
[402988052,1769022641087,-500.0,0.00019999,2]
[402988053,1769022641097,-212.92722624,0.00019999,2]
[402988054,1769022641112,-500.0,0.00019999,2]
[402988055,1769022641122,-500.0,0.00019999,2]
[402988056,1769022641131,-500.0,0.00019999,2]
[402988057,1769022641141,-500.0,0.00019999,2]
[402988058,1769022641151,-500.0,0.00019999,2]
[402988059,1769022641160,-4000.0,0.0002,2]
[402988060,1769022641170,-2747.0,0.0002,2]
[402988061,1769022641182,-582.0,0.00020043,2]
[402988062,1769022641191,-166.66,0.00020182,2]
[402988063,1769022641201,-186.93,0.0002029,2]
[402988064,1769022641210,-20118.33,0.00020498,2]
[402988065,1769022641220,-500.0,0.00020499,2]
[402988066,1769022641229,-500.0,0.00020499,2]
[402988067,1769022641239,-500.0,0.00020499,2]
[402988068,1769022641249,-500.0,0.00020499,2]
[402988069,1769022641258,-500.0,0.00020499,2]
[402988070,1769022641267,-500.0,0.00020499,2]
[402988071,1769022641276,-500.0,0.00020499,2]
[402988072,1769022641285,-500.0,0.00020499,2]
[402988073,1769022641294,-500.0,0.00020499,2]
[402988074,1769022641304,-500.0,0.00020499,2]
[402988075,1769022641313,-500.0,0.00020499,2]
[402988076,1769022641322,-500.0,0.00020499,2]
[402988077,1769022641331,-500.0,0.00020499,2]
[402988078,1769022641340,-500.0,0.00020499,2]
[402988079,1769022641350,-500.0,0.00020499,2]
[402988080,1769022641360,-500.0,0.00020499,2]
[402988081,1769022641369,-500.0,0.00020499,2]
[402988082,1769022641379,-500.0,0.00020499,2]
[402988083,1769022641389,-644.24583589,0.00020499,2]
[402988084,1769022641400,-500.0,0.00020499,2]
[402988085,1769022641410,-500.0,0.00020499,2]
[402988086,1769022641419,-500.0,0.00020499,2]
[402988087,1769022641428,-500.0,0.00020499,2]
[402988088,1769022641438,-500.0,0.00020499,2]
[402988089,1769022641447,-500.0,0.00020499,2]
[402988090,1769022641456,-500.0,0.00020499,2]
[402988091,1769022641465,-161.04,0.000205,7]
[402988092,1769022641475,-222316.9998014,0.00020566,2]
[402988093,1769022641484,-59190.8951709,0.00020566,2]
[402988094,1769022641495,-500.0,0.00020575,2]
[402988095,1769022641505,-150.00017572,0.00020647,11]
[402988096,1769022641515,-14919.2741723,0.00020687,2]
[402988097,1769022641525,-266.01327061,0.00020967,2]
[402988098,1769022641535,-350.0,0.00021,2]
[402988099,1769022641545,-186.93,0.00021172,2]
[402988100,1769022641554,-158.37327714,0.00021205,2]
[402988101,1769022641564,-174.61919141,0.00021293,2]
[402988102,1769022641573,-236.89618779,0.00021293,2]
[402988103,1769022641582,-250.0,0.00021293,2]
[402988104,1769022641592,-250.0,0.00021293,2]
[402988105,1769022641603,-322.6107,0.00021293,2]
[402988106,1769022641612,-250.0,0.00021293,2]
[402988107,1769022641621,-250.0,0.00021293,2]
[402988108,1769022641631,-250.0,0.00021293,2]
[402988109,1769022641640,-250.0,0.00021293,2]
[402988110,1769022641649,-250.0,0.00021293,2]
[402988111,1769022641658,-250.0,0.00021293,2]
[402988112,1769022641667,-500.0,0.00021293,2]
[402988113,1769022641676,-250.0,0.00021293,2]
[402988114,1769022641686,-250.0,0.00021293,2]
[402988115,1769022641695,-500.0,0.00021293,2]
[402988116,1769022641704,-250.0,0.00021293,2]
[402988117,1769022641714,-250.0,0.00021293,2]
[402988118,1769022641723,-500.0,0.00021293,2]
[402988119,1769022641732,-250.0,0.00021293,2]
[402988120,1769022641741,-250.0,0.00021293,2]
[402988121,1769022641750,-500.0,0.00021293,2]
[402988122,1769022641760,-250.0,0.00021293,2]
[402988123,1769022641770,-250.0,0.00021293,2]
[402988124,1769022641779,-500.0,0.00021293,2]
[402988125,1769022641789,-250.0,0.00021293,2]
[402988126,1769022641798,-500.0,0.00021293,2]
[402988127,1769022641807,-500.0,0.00021293,2]
[402988128,1769022641818,-500.0,0.00021293,2]
[402988129,1769022641827,-500.0,0.00021293,2]
[402988130,1769022641836,-500.0,0.00021293,2]
[402988131,1769022641845,-500.0,0.00021293,2]
[402988132,1769022641855,-500.0,0.00021293,2]
[402988133,1769022641864,-151.0,0.00021293,2]
[402988134,1769022641874,-151.0,0.00021293,2]
[402988135,1769022641883,-151.0,0.00021293,2]
[402988136,1769022641892,-151.0,0.00021293,2]
[402988137,1769022641901,-151.0,0.00021293,2]
[402988138,1769022641911,-151.0,0.00021293,2]
[402988139,1769022641920,-151.0,0.00021293,2]
[402988140,1769022641930,-151.0,0.00021293,2]
[402988141,1769022641939,-151.0,0.00021293,2]
[402988142,1769022641949,-151.0,0.00021293,2]
[402988143,1769022641958,-151.0,0.00021293,2]
[402988144,1769022641967,-151.0,0.00021293,2]
[402988145,1769022641978,-190.12,0.00021491,2]
[402988146,1769022641987,-1000.0,0.0002168,2]
[402988147,1769022641998,-409.52,0.00021728,2]
[402988148,1769022642008,-3292.0,0.00021777,2]
[402988149,1769022642019,-181.08010149,0.00021841,2]
[402988150,1769022642028,-5000.0,0.00021918,2]
[402988151,1769022642039,-300.0,0.00021918,2]
[402988152,1769022642048,-848.04,0.00021938,2]
[402988153,1769022642058,-150.00017572,0.00021966,16]
[402988154,1769022642067,-33610.75747025,0.00022,2]
[402988155,1769022642076,-1191.98,0.00022,7]
[402988156,1769022642086,-164.87,0.00022,2]
[402988157,1769022642095,-186.93,0.00022054,2]
[402988158,1769022642105,-7997.38747366,0.00022137,2]
[402988159,1769022642118,-6684.1140788,0.00022155,2]
[402988160,1769022642128,-187.78006525,0.00022389,2]
[402988161,1769022642138,-702.6873991,0.00022466,2]
[402988162,1769022642147,-190.1,0.00022529,2]
[402988163,1769022642156,-158.37327714,0.00022618,2]
[402988164,1769022642165,-334.5472959,0.00022662,2]
[402988165,1769022642177,-9817.39,0.0002274,2]
[402988166,1769022642188,-186.93,0.00022936,2]
[402988167,1769022642200,-194.72792766,0.00022937,2]
[402988168,1769022642210,-1411.89147186,0.00022967,2]
[402988169,1769022642220,-400.0,0.00023,2]
[402988170,1769022642230,-151.28,0.00023122,2]
[402988171,1769022642239,-222316.9998014,0.00023132,2]
[402988172,1769022642249,-59190.8951709,0.00023132,2]
[402988173,1769022642259,-150.00017572,0.00023286,21]
[402988174,1769022642268,-14919.2741723,0.00023375,2]
[402988175,1769022642278,-195.81883685,0.00023485,2]
[402988176,1769022642287,-186.93,0.00023818,2]
[402988177,1769022642296,-1000.0,0.00023848,2]
[402988178,1769022642306,-4609.0,0.00023918,2]
[402988179,1769022642315,-848.04,0.00023932,2]
[402988180,1769022642324,-273.88304454,0.00024031,2]
[402988181,1769022642334,-158.37327714,0.00024032,2]
[402988182,1769022642343,-164.87,0.000241,2]
[402988183,1769022642352,-915.0,0.00024222,2]
[402988184,1769022642362,-1203.0,0.00024222,2]
[402988185,1769022642372,-2488.565,0.00024222,2]
[402988186,1769022642381,-566.0,0.00024222,2]
[402988192,1769022642552,-6564.0,0.00024222,2]
[402988193,1769022642562,-150.0,0.00024399,2]
[402988194,1769022642571,-266.0,0.00024399,2]
[402988195,1769022642580,-227.246,0.00024399,2]
[402988196,1769022642590,-194.916,0.00024399,2]
[402988197,1769022642599,-250.0,0.00024399,2]
[402988198,1769022642607,-157.766,0.00024399,2]
[402988199,1769022642616,-1332.0,0.00024399,2]
[402988200,1769022642625,-615.0,0.00024399,2]
[402988201,1769022642634,-3473.0,0.00024399,2]
[402988202,1769022642643,-383.159,0.00024399,2]
[402988203,1769022642653,-1268.0,0.00024399,2]
[402988204,1769022642663,-150.00017572,0.00024605,26]
[402988205,1769022642672,-190.12,0.00024626,2]
[402988206,1769022642683,-997.0,0.00024658,7]
[402988207,1769022642692,-183.51,0.00024658,2]
[402988208,1769022642701,-1000.0,0.00024658,2]
[402988209,1769022642710,-150.0,0.00024658,2]
[402988210,1769022642721,-433.18464984,0.00024659,7]
[402988211,1769022642730,-1191.98,0.000248,7]
[402988212,1769022642739,-6709.73165837,0.000248,3]
[402988213,1769022642749,-544.583623,0.000249,2]
[402988214,1769022642758,-7997.38747366,0.00024948,2]
[402988215,1769022642768,-6684.1140788,0.00024976,2]
[402988216,1769022642777,-42006.42,0.00025,2]
[402988217,1769022642786,-450.0,0.00025,2]
[402988218,1769022642796,-282.38,0.00025016,30]
[402988219,1769022642805,-14244.04,0.00025261,2]
[402988220,1769022642815,-500.0,0.00025342,2]
[402988221,1769022642824,-266.01327061,0.0002542,2]
[402988222,1769022642833,-158.37327714,0.00025446,2]
[402988223,1769022642842,-281.34683604,0.00025598,4]
[402988224,1769022642851,-153.18312806,0.00025598,2]
[402988225,1769022642861,-3118.55412354,0.00025598,2]
[402988226,1769022642872,-5616.23362237,0.00025598,2]
[402988227,1769022642881,-534.0,0.0002564,7]
[402988228,1769022642891,-1284.29468614,0.00025688,2]
[402988229,1769022642900,-13079.0,0.00025696,2]
[402988230,1769022642909,-222316.9998014,0.00025697,2]
[402988231,1769022642919,-59190.8951709,0.00025697,2]
[402988232,1769022642929,-150.00017572,0.00025925,30]
[402988233,1769022642938,-1000.0,0.00026016,2]
[402988234,1769022642947,-14919.2741723,0.00026062,2]
[402988236,1769022642956,-154.98,0.0002618,14]
[402988237,1769022642965,-1642.0,0.0002627,2]
[402988238,1769022642974,-2190.9319388,0.00026346,2]
[402988239,1769022642984,-154.98,0.0002651,2]
[402988240,1769022642994,-158.37327714,0.00026859,2]
[402988241,1769022643004,-11000.0,0.000269,9]
[402988242,1769022643013,-500.0,0.00027,2]
[402988243,1769022643023,-28828.0,0.0002712,2]
[402988244,1769022643032,-915.0,0.00027222,2]
[402988245,1769022643041,-1203.0,0.00027222,2]
[402988246,1769022643052,-2440.0,0.00027222,2]
[402988248,1769022643061,-566.0,0.00027222,2]
[402988250,1769022643071,-150.00017572,0.00027244,35]
[402988251,1769022643080,-1008.3455,0.00027299,2]
[402988252,1769022643090,-150.0,0.00027369,2]
[402988253,1769022643100,-182.40656799,0.0002737,2]
[402988254,1769022643113,-278.95,0.00027397,120]
[402988255,1769022643122,-300.0,0.00027397,2]
[402988257,1769022643131,-500.0,0.00027397,20]
[402988259,1769022643141,-150.0,0.00027399,2]
[402988261,1769022643152,-150.0,0.00027399,2]
[402988262,1769022643161,-1332.0,0.00027399,2]
[402988263,1769022643170,-615.0,0.00027399,2]
[402988264,1769022643181,-1268.0,0.00027399,2]
[402988265,1769022643190,-278.95,0.00027452,120]
[402988266,1769022643199,-258.29,0.00027614,2]
[402988267,1769022643208,-586.1097,0.00027659,14]
[402988268,1769022643218,-7997.38747366,0.0002776,2]
[402988269,1769022643227,-6684.1140788,0.00027797,2]
[402988270,1769022643236,-151.0,0.0002803,7]
[402988271,1769022643248,-1411.89147186,0.00028033,2]
[402988272,1769022643257,-158.37327714,0.00028273,2]
[402988273,1769022643268,-150.00017572,0.00028563,39]
[402988274,1769022643279,-278.95,0.00028767,120]
[402988275,1769022643290,-190.12,0.00029067,2]
[402988276,1769022643299,-483.12,0.000295,14]
[402988277,1769022643309,-1191.98,0.000296,7]
[402988278,1769022643318,-158.37327718,0.00029686,2]
[402988279,1769022643330,-266.01327061,0.00029874,2]
[402988280,1769022643341,-150.00017572,0.00029883,43]
[402988281,1769022643350,-1000.0,0.0002997,2]
[402988282,1769022643360,-500.0,0.0002997,2]
[402988283,1769022643369,-150.0,0.0002997,2]
[402988284,1769022643378,-108646.38617958,0.0003,5]
[402988285,1769022643387,-16471.57543627,0.0003,7]
[402988286,1769022643396,-183.51,0.00030137,2]
[402988287,1769022643406,-199.44,0.000302,30]
[402988288,1769022643417,-915.0,0.00030222,2]
[402988289,1769022643426,-840.069,0.00030222,2]
[402988290,1769022643435,-566.0,0.00030222,2]
[402988291,1769022643447,-1332.0,0.00030399,2]
[402988292,1769022643457,-1268.0,0.00030399,2]
[402988293,1769022643466,-7997.38747366,0.00030571,2]
[402988294,1769022643477,-6684.1140788,0.00030617,2]
[402988295,1769022643489,-150.00017572,0.00031202,47]
[402988296,1769022643498,-2078.99,0.00031452,2]
[402988297,1769022643507,-534.0,0.0003168,13]
[402988298,1769022643516,-2000.0,0.000323,2]
[402988299,1769022643526,-369.6,0.000324,10]
[402988300,1769022643535,-2000.0,0.000324,7]
[402988301,1769022643546,-150.00017572,0.00032521,52]
[402988302,1769022643556,-500.0,0.00032767,2]
[402988303,1769022643565,-500.0,0.00032822,2]
[402988304,1769022643574,-156.71,0.00033,14]
[402988305,1769022643583,-166.23,0.00033,2]
[402988306,1769022643592,-169.0,0.00033,14]
[402988307,1769022643601,-319.0,0.00033,14]
[402988308,1769022643610,-1411.89147186,0.000331,2]
[402988309,1769022643619,-319.0,0.00033151,30]
[402988310,1769022643630,-501.623,0.00033222,2]
[402988311,1769022643641,-7997.38747366,0.00033383,2]
[402988312,1769022643650,-758.668,0.00033399,2]
[402988313,1769022643659,-1268.0,0.00033399,2]
[402988314,1769022643668,-319.0,0.00033425,30]
[402988315,1769022643677,-6684.1140788,0.00033438,2]
[402988316,1769022643686,-319.0,0.00033699,30]
[402988317,1769022643696,-150.00017572,0.00033841,56]
[402988318,1769022643705,-319.0,0.00033973,30]
[402988319,1769022643715,-544.58362299,0.00034067,2]
[402988320,1769022643726,-1191.98,0.000342,14]
[402988321,1769022643735,-266.01327061,0.00034327,2]
[402988322,1769022643745,-3118.55412352,0.00034416,2]
[402988323,1769022643754,-5616.23362236,0.00034416,2]
[402988324,1769022643763,-169.0,0.00034521,30]
[402988325,1769022643772,-319.0,0.00034521,30]
[402988326,1769022643781,-150.0,0.00034551,30]
[402988327,1769022643791,-150.0,0.00034551,2]
[402988328,1769022643800,-9394.81372636,0.00034573,2]
[402988329,1769022643808,-5000.0,0.00034573,2]
[402988330,1769022643817,-5000.0,0.00034573,2]
[402988331,1769022643826,-200.0,0.00034606,30]
[402988332,1769022643835,-150.0001758,0.0003516,60]
[402988333,1769022643845,-812.5,0.00035307,30]
[402988334,1769022643854,-3511.0,0.000354,7]
[402988335,1769022643863,-371.12351035,0.00035616,120]
[402988336,1769022643872,-500.0,0.00035616,5]
[402988337,1769022643882,-183.51,0.00035616,2]
[402988338,1769022643891,-103546.80278632,0.00036,2]
[402988339,1769022643900,-8565.03380943,0.00036,2]
[402988340,1769022643909,-1031.0,0.00036,2]
[402988341,1769022643919,-7997.38747366,0.00036194,2]
[402988342,1769022643928,-170.0,0.00036247,30]
[402988343,1769022643938,-319.0,0.00036247,30]
[402988344,1769022643947,-324.0,0.00036247,30]
[402988345,1769022643956,-6684.1140788,0.00036259,2]
[402988346,1769022643965,-489.637,0.00036399,2]
[402988347,1769022643975,-151.37581532,0.0003648,65]
[402988348,1769022643984,-1607.61794903,0.000368,2]
[402988349,1769022643993,-1951.25189202,0.000368,2]
[402988350,1769022644003,-14100.1730582,0.0003691,2]
[402988351,1769022644012,-152.0,0.00036983,3]
[402988352,1769022644021,-165.35323052,0.00037,2]
[402988353,1769022644030,-515.0,0.00037,2]
[402988354,1769022644040,-14244.04,0.00037041,2]
[402988355,1769022644049,-253.7314921,0.00037088,2]
[402988356,1769022644057,-456.71668578,0.00037088,2]
[402988357,1769022644067,-7063.11103354,0.0003739,2]
[402988358,1769022644076,-156.71,0.000374,14]
[402988359,1769022644085,-369.6,0.000374,14]
[402988360,1769022644095,-211.6088061,0.00037454,120]
[402988361,1769022644105,-402.6,0.000375,30]
[402988362,1769022644118,-4324.08399015,0.0003759,2]
[402988363,1769022644127,-319.0,0.00037696,30]
[402988364,1769022644136,-534.0,0.0003772,19]
[402988365,1769022644147,-151.37581532,0.00037799,69]
[402988366,1769022644163,-201.72565527,0.0003788,2]
[402988367,1769022644172,-319.0,0.00037973,30]
[402988368,1769022644181,-3000.0,0.00038,7]
[402988369,1769022644192,-1411.89147186,0.00038166,2]
[402988370,1769022644201,-500.0,0.00038356,60]
[402988371,1769022644211,-278.95,0.00038356,120]
[402988372,1769022644219,-2000.0,0.000384,2]
[402988373,1769022644228,-500.0,0.00038411,60]
[402988374,1769022644237,-500.0,0.00038466,60]
[402988375,1769022644247,-500.0,0.0003852,60]
[402988376,1769022644256,-500.0,0.00038575,60]
[402988377,1769022644264,-266.01327061,0.0003878,2]
[402988378,1769022644273,-5800.0,0.00038789,14]
[402988379,1769022644283,-5800.0,0.00038798,14]
[402988380,1769022644292,-5800.0,0.00038806,14]
[402988381,1769022644301,-5800.0,0.00038815,14]
[402988382,1769022644311,-5800.0,0.00038823,14]
[402988383,1769022644321,-5800.0,0.00038831,14]
[402988384,1769022644332,-5800.0,0.0003884,14]
[402988385,1769022644341,-5800.0,0.00038849,14]
[402988386,1769022644350,-5800.0,0.00038849,14]
[402988387,1769022644360,-5800.0,0.00038857,14]
[402988388,1769022644370,-5800.0,0.00038857,14]
[402988389,1769022644379,-5800.0,0.00038866,14]
[402988390,1769022644390,-5800.0,0.00038866,14]
[402988391,1769022644400,-5800.0,0.00038874,14]
[402988392,1769022644410,-16014.00303599,0.00038874,2]
[402988393,1769022644421,-5800.0,0.00038874,14]
[402988394,1769022644431,-2025.49883773,0.00038874,14]
[402988395,1769022644442,-25000.0,0.00038874,15]
[402988396,1769022644451,-10690.13935999,0.00038874,15]
[402988397,1769022644460,-1019.5239975,0.00038874,14]